[Event "Live Chess"]
[Site "Chess.com"]
[Date "2024.06.02"]
[Round "-"]
[White "GEMdzq"]
[Black "Delacorta"]
[Result "1-0"]
[WhiteElo "2294"]
[BlackElo "1518"]
[TimeControl "300"]
[EndTime "2:42:22 PDT"]
[Termination "GEMdzq won by resignation"]

1. e4 {[%clk 0:04:57.1]} 1... e6 {[%clk 0:04:59]} 2. d4 {[%clk 0:04:56]} 2... d5
{[%clk 0:04:57.5]} 3. Nc3 {[%clk 0:04:55]} 3... dxe4 {[%clk 0:04:55.7]} 4. Nxe4
{[%clk 0:04:53.8]} 4... Bd7 {[%clk 0:04:55.1]} 5. Bg5 {[%clk 0:04:49.2]} 5...
Be7 {[%clk 0:04:46.9]} 6. Bxe7 {[%clk 0:04:47.4]} 6... Qxe7 {[%clk 0:04:43.3]}
7. Nf3 {[%clk 0:04:46.4]} 7... Nf6 {[%clk 0:04:36.2]} 8. Nxf6+ {[%clk
0:04:43.5]} 8... Qxf6 {[%clk 0:04:34.7]} 9. c3 {[%clk 0:04:40.9]} 9... Bc6
{[%clk 0:04:27.4]} 10. Bd3 {[%clk 0:04:39.5]} 10... Bxf3 {[%clk 0:04:22.4]} 11.
Qxf3 {[%clk 0:04:36.2]} 11... Qxf3 {[%clk 0:04:20.3]} 12. gxf3 {[%clk
0:04:36.1]} 12... g6 {[%clk 0:04:18.9]} 13. h4 {[%clk 0:04:34.3]} 13... Nd7
{[%clk 0:04:10.4]} 14. h5 {[%clk 0:04:32.9]} 14... Ke7 {[%clk 0:04:07.5]} 15.
O-O-O {[%clk 0:04:30.1]} 15... Nf6 {[%clk 0:04:01.7]} 16. h6 {[%clk 0:04:19.8]}
16... Nd5 {[%clk 0:03:49.4]} 17. Be4 {[%clk 0:04:16.2]} 17... c6 {[%clk
0:03:45.9]} 18. Rde1 {[%clk 0:04:14.3]} 18... Nf4 {[%clk 0:03:39.5]} 19. Rh4
{[%clk 0:04:10.5]} 19... Nd5 {[%clk 0:03:28.1]} 20. c4 {[%clk 0:04:05.8]} 20...
Nf6 {[%clk 0:03:26.6]} 21. d5 {[%clk 0:04:00.3]} 21... cxd5 {[%clk 0:03:23.5]}
22. Bxd5 {[%clk 0:03:57]} 22... Nxd5 {[%clk 0:03:17.4]} 23. cxd5 {[%clk
0:03:54.6]} 23... Rac8+ {[%clk 0:03:15.3]} 24. Kb1 {[%clk 0:03:52.9]} 24... Rc5
{[%clk 0:02:58.3]} 25. dxe6 {[%clk 0:03:49.2]} 25... fxe6 {[%clk 0:02:56.5]} 26.
Rhe4 {[%clk 0:03:47.9]} 26... Rc6 {[%clk 0:02:52.3]} 27. Rb4 {[%clk 0:03:43.7]}
27... b6 {[%clk 0:02:48.3]} 28. a4 {[%clk 0:03:42.2]} 28... Rhc8 {[%clk
0:02:40.2]} 29. Re2 {[%clk 0:03:37.1]} 29... Rc4 {[%clk 0:02:31.9]} 30. Re4
{[%clk 0:03:28.9]} 30... Rc2 {[%clk 0:02:25.1]} 31. a5 {[%clk 0:03:26]} 31...
Rxf2 {[%clk 0:02:20]} 32. axb6 {[%clk 0:03:24.3]} 32... axb6 {[%clk 0:02:17.5]}
33. Rxb6 {[%clk 0:03:23.3]} 33... Rcc2 {[%clk 0:02:15.7]} 34. Rexe6+ {[%clk
0:03:21.1]} 34... Kd7 {[%clk 0:02:09.3]} 35. Rf6 {[%clk 0:03:18.3]} 35... Rce2
{[%clk 0:01:33.3]} 36. Rf7+ {[%clk 0:03:13.8]} 36... Re7 {[%clk 0:01:30.8]} 37.
Rb7+ {[%clk 0:03:11.5]} 1-0

[Event "Live Chess"]
[Site "Chess.com"]
[Date "2024.06.02"]
[Round "-"]
[White "slava_ukr"]
[Black "WorcesterYork"]
[Result "1-0"]
[WhiteElo "2428"]
[BlackElo "2476"]
[TimeControl "300"]
[EndTime "2:42:59 PDT"]
[Termination "slava_ukr won by resignation"]

1. e4 {[%clk 0:04:58.4]} 1... c5 {[%clk 0:04:59.5]} 2. Nc3 {[%clk 0:04:57.6]}
2... Nc6 {[%clk 0:04:58.1]} 3. f4 {[%clk 0:04:57]} 3... e6 {[%clk 0:04:57]} 4.
Nf3 {[%clk 0:04:56.6]} 4... d5 {[%clk 0:04:56.3]} 5. g3 {[%clk 0:04:55.8]} 5...
Nf6 {[%clk 0:04:50.3]} 6. e5 {[%clk 0:04:53.3]} 6... Ng8 {[%clk 0:04:49.5]} 7.
d4 {[%clk 0:04:42.2]} 7... cxd4 {[%clk 0:04:44.8]} 8. Nxd4 {[%clk 0:04:41.3]}
8... Nxd4 {[%clk 0:04:44.7]} 9. Qxd4 {[%clk 0:04:40.1]} 9... Ne7 {[%clk
0:04:43.2]} 10. Bd3 {[%clk 0:04:37.3]} 10... Nc6 {[%clk 0:04:43]} 11. Qf2 {[%clk
0:04:35.8]} 11... h5 {[%clk 0:04:38.5]} 12. Bd2 {[%clk 0:04:32.8]} 12... h4
{[%clk 0:04:37.6]} 13. g4 {[%clk 0:04:31.5]} 13... b6 {[%clk 0:04:22.8]} 14.
O-O-O {[%clk 0:04:27.7]} 14... Bc5 {[%clk 0:04:21.9]} 15. Qg2 {[%clk 0:04:05.6]}
15... Bd7 {[%clk 0:04:11.2]} 16. g5 {[%clk 0:04:02]} 16... g6 {[%clk 0:04:08]}
17. Rhe1 {[%clk 0:03:51.7]} 17... a6 {[%clk 0:04:04.3]} 18. f5 {[%clk 0:03:29]}
18... gxf5 {[%clk 0:03:51.4]} 19. g6 {[%clk 0:03:28.2]} 19... Qe7 {[%clk
0:03:50.7]} 20. Bg5 {[%clk 0:03:18.6]} 20... h3 {[%clk 0:03:49.8]} 21. Qg3
{[%clk 0:03:04.9]} 21... Qf8 {[%clk 0:03:47.5]} 22. Bf6 {[%clk 0:03:03.5]} 22...
Rg8 {[%clk 0:03:46.4]} 23. g7 {[%clk 0:03:02.6]} 1-0

[Event "Live Chess"]
[Site "Chess.com"]
[Date "2024.06.02"]
[Round "-"]
[White "friarnator"]
[Black "TheSmoulderingMaster"]
[Result "1-0"]
[WhiteElo "2192"]
[BlackElo "1782"]
[TimeControl "300"]
[EndTime "2:43:11 PDT"]
[Termination "friarnator won by checkmate"]

1. d4 {[%clk 0:04:57.2]} 1... Nf6 {[%clk 0:04:45.5]} 2. Nc3 {[%clk 0:04:55.2]}
2... d6 {[%clk 0:04:44.4]} 3. Bf4 {[%clk 0:04:53.8]} 3... g6 {[%clk 0:04:43.5]}
4. Qd2 {[%clk 0:04:51.9]} 4... Bg7 {[%clk 0:04:42.4]} 5. h4 {[%clk 0:04:49.3]}
5... O-O {[%clk 0:04:41.5]} 6. Bh6 {[%clk 0:04:48.5]} 6... Nbd7 {[%clk 0:04:40]}
7. h5 {[%clk 0:04:47.3]} 7... c5 {[%clk 0:04:36.4]} 8. hxg6 {[%clk 0:04:42.8]}
8... fxg6 {[%clk 0:04:34.9]} 9. Bxg7 {[%clk 0:04:41.2]} 9... Kxg7 {[%clk
0:04:33.8]} 10. Qh6+ {[%clk 0:04:38.3]} 10... Kg8 {[%clk 0:04:33.1]} 11. e3
{[%clk 0:04:37.2]} 11... Rf7 {[%clk 0:04:31.6]} 12. Bc4 {[%clk 0:04:35.4]} 12...
d5 {[%clk 0:04:21.5]} 13. Nxd5 {[%clk 0:04:34]} 13... e6 {[%clk 0:04:16.4]} 14.
Nf4 {[%clk 0:04:28.2]} 14... Nb6 {[%clk 0:04:09.5]} 15. Bxe6 {[%clk 0:04:16]}
15... Bxe6 {[%clk 0:04:07.3]} 16. Nxe6 {[%clk 0:04:15.9]} 16... Qd6 {[%clk
0:04:00.1]} 17. Ng5 {[%clk 0:04:12.5]} 17... Rg7 {[%clk 0:03:57.6]} 18. O-O-O
{[%clk 0:04:04.9]} 18... cxd4 {[%clk 0:03:55]} 19. Rxd4 {[%clk 0:03:55.4]} 19...
Qe5 {[%clk 0:03:50]} 20. N1f3 {[%clk 0:03:53]} 20... Qa5 {[%clk 0:03:45.5]} 21.
a3 {[%clk 0:03:46.7]} 21... Rc8 {[%clk 0:03:41]} 22. Rhd1 {[%clk 0:03:44.3]}
22... Na4 {[%clk 0:03:32.7]} 23. Ne6 {[%clk 0:03:31.1]} 23... Qb6 {[%clk
0:03:26.3]} 24. Qxg7# {[%clk 0:03:27]} 1-0

[Event "Live Chess"]
[Site "Chess.com"]
[Date "2024.06.02"]
[Round "-"]
[White "upoe610"]
[Black "Bradfield133"]
[Result "1-0"]
[WhiteElo "2145"]
[BlackElo "1869"]
[TimeControl "300"]
[EndTime "2:43:12 PDT"]
[Termination "upoe610 won on time"]

1. c4 {[%clk 0:04:57.4]} 1... c5 {[%clk 0:04:58.3]} 2. g3 {[%clk 0:04:56.3]}
2... g6 {[%clk 0:04:55.4]} 3. Bg2 {[%clk 0:04:54.8]} 3... Bg7 {[%clk 0:04:54.9]}
4. Nc3 {[%clk 0:04:53]} 4... Nc6 {[%clk 0:04:53.9]} 5. Nf3 {[%clk 0:04:48.5]}
5... e5 {[%clk 0:04:52]} 6. a3 {[%clk 0:04:45.5]} 6... Nge7 {[%clk 0:04:46.1]}
7. O-O {[%clk 0:04:43.3]} 7... O-O {[%clk 0:04:43]} 8. b4 {[%clk 0:04:41.7]}
8... cxb4 {[%clk 0:04:40.3]} 9. axb4 {[%clk 0:04:41.6]} 9... Nxb4 {[%clk
0:04:32.9]} 10. Ba3 {[%clk 0:04:40.1]} 10... Nec6 {[%clk 0:04:31.9]} 11. Ne4
{[%clk 0:04:37.8]} 11... f5 {[%clk 0:04:21.1]} 12. Nd6 {[%clk 0:04:35.5]} 12...
e4 {[%clk 0:04:19.4]} 13. Ne1 {[%clk 0:04:30]} 13... Bxa1 {[%clk 0:04:15.2]} 14.
Qxa1 {[%clk 0:04:28.7]} 14... Qf6 {[%clk 0:04:10.8]} 15. Qxf6 {[%clk 0:04:22]}
15... Rxf6 {[%clk 0:04:08.2]} 16. Nb5 {[%clk 0:04:20.1]} 16... a6 {[%clk
0:03:33.5]} 17. Nc3 {[%clk 0:04:17.1]} 17... d6 {[%clk 0:03:07.2]} 18. d3 {[%clk
0:04:11.8]} 18... exd3 {[%clk 0:03:03.3]} 19. Nxd3 {[%clk 0:04:11.7]} 19... Nc2
{[%clk 0:02:55.6]} 20. Nd5 {[%clk 0:04:03.9]} 20... Rf7 {[%clk 0:02:48.9]} 21.
Bb2 {[%clk 0:04:02.3]} 21... Be6 {[%clk 0:02:43.7]} 22. N3f4 {[%clk 0:03:58.7]}
22... Nd8 {[%clk 0:02:28.4]} 23. Nf6+ {[%clk 0:03:52.4]} 23... Kf8 {[%clk
0:02:25.3]} 24. Nxe6+ {[%clk 0:03:50.6]} 24... Nxe6 {[%clk 0:02:21.7]} 25. Bd5
{[%clk 0:03:49.5]} 25... Rxf6 {[%clk 0:02:19.9]} 26. Bxf6 {[%clk 0:03:47.8]}
26... Nc5 {[%clk 0:02:12.8]} 27. Rc1 {[%clk 0:03:40.3]} 27... Nb4 {[%clk
0:02:07.1]} 28. Rb1 {[%clk 0:03:39.3]} 28... Nxd5 {[%clk 0:02:03.9]} 29. cxd5
{[%clk 0:03:39.2]} 29... b5 {[%clk 0:01:59.8]} 30. Kf1 {[%clk 0:03:36.8]} 30...
Rb8 {[%clk 0:01:55.6]} 31. Ke1 {[%clk 0:03:32.4]} 31... b4 {[%clk 0:01:52.7]}
32. Kd2 {[%clk 0:03:31.8]} 32... a5 {[%clk 0:01:51.6]} 33. Ke3 {[%clk
0:03:30.6]} 33... a4 {[%clk 0:01:48.1]} 34. Bd4 {[%clk 0:03:28.7]} 34... b3
{[%clk 0:01:45.1]} 35. Kd2 {[%clk 0:03:22]} 35... a3 {[%clk 0:01:35.4]} 36. Rh1
{[%clk 0:03:13.5]} 36... Ne4+ {[%clk 0:01:19.7]} 37. Kc1 {[%clk 0:03:06.7]}
37... b2+ {[%clk 0:01:12.8]} 38. Kc2 {[%clk 0:03:03.8]} 38... Rc8+ {[%clk
0:00:56.2]} 39. Kb1 {[%clk 0:02:54.4]} 39... Nd2+ {[%clk 0:00:50.9]} 40. Ka2
{[%clk 0:02:53.5]} 40... b1=Q+ {[%clk 0:00:44.7]} 41. Rxb1 {[%clk 0:02:51]}
41... Nxb1 {[%clk 0:00:43.6]} 42. Kxb1 {[%clk 0:02:50.9]} 42... Rb8+ {[%clk
0:00:33.5]} 43. Ka2 {[%clk 0:02:49.8]} 43... Rb5 {[%clk 0:00:32]} 44. Kxa3
{[%clk 0:02:47.1]} 44... Rxd5 {[%clk 0:00:31.1]} 45. e3 {[%clk 0:02:46.6]} 45...
Kf7 {[%clk 0:00:29.2]} 46. Kb4 {[%clk 0:02:45.7]} 46... Ke6 {[%clk 0:00:28.2]}
47. Kc4 {[%clk 0:02:43.7]} 47... Ra5 {[%clk 0:00:26.7]} 48. h4 {[%clk
0:02:38.7]} 48... Ra2 {[%clk 0:00:25.2]} 49. f3 {[%clk 0:02:36.9]} 49... Rg2
{[%clk 0:00:21.4]} 50. Kd3 {[%clk 0:02:33.8]} 50... Rxg3 {[%clk 0:00:19.1]} 51.
Ke2 {[%clk 0:02:33.3]} 51... Rh3 {[%clk 0:00:18.2]} 52. Kf2 {[%clk 0:02:32.7]}
52... Rxh4 {[%clk 0:00:16.4]} 53. Bg7 {[%clk 0:02:32.3]} 53... Ra4 {[%clk
0:00:07.7]} 54. Kg3 {[%clk 0:02:28.8]} 54... Ra2 {[%clk 0:00:06.4]} 55. Bh8
{[%clk 0:02:19.4]} 55... h5 {[%clk 0:00:06.3]} 56. Kh4 {[%clk 0:02:16.9]} 56...
d5 {[%clk 0:00:06.2]} 57. Bd4 {[%clk 0:02:15.2]} 57... Kf7 {[%clk 0:00:03.3]}
58. Kg5 {[%clk 0:02:14.4]} 58... Rg2+ {[%clk 0:00:01.5]} 59. Kh4 {[%clk
0:02:13.7]} 59... Rg1 {[%clk 0:00:00.2]} 60. Kh3 {[%clk 0:02:11.3]} 1-0

[Event "Live Chess"]
[Site "Chess.com"]
[Date "2024.06.02"]
[Round "-"]
[White "JanMur7"]
[Black "silunn"]
[Result "1/2-1/2"]
[WhiteElo "2278"]
[BlackElo "2135"]
[TimeControl "300"]
[EndTime "2:43:26 PDT"]
[Termination "Game drawn by repetition"]

1. e4 {[%clk 0:04:57.4]} 1... e6 {[%clk 0:04:59.9]} 2. d4 {[%clk 0:04:55.8]}
2... d5 {[%clk 0:04:59.5]} 3. exd5 {[%clk 0:04:55.7]} 3... exd5 {[%clk
0:04:58.2]} 4. Bd3 {[%clk 0:04:55.6]} 4... Bd6 {[%clk 0:04:57.8]} 5. Ne2 {[%clk
0:04:51.1]} 5... Ne7 {[%clk 0:04:57]} 6. O-O {[%clk 0:04:49.7]} 6... Nbc6 {[%clk
0:04:56.7]} 7. c3 {[%clk 0:04:47.5]} 7... Bg4 {[%clk 0:04:55.7]} 8. f3 {[%clk
0:04:45]} 8... Bh5 {[%clk 0:04:54.1]} 9. Bf4 {[%clk 0:04:44.4]} 9... O-O {[%clk
0:04:50.4]} 10. Qd2 {[%clk 0:04:38.9]} 10... Qd7 {[%clk 0:04:48.2]} 11. Bxd6
{[%clk 0:04:36.9]} 11... Qxd6 {[%clk 0:04:43.1]} 12. Qf4 {[%clk 0:04:32.3]}
12... Qxf4 {[%clk 0:04:38.3]} 13. Nxf4 {[%clk 0:04:32.2]} 13... Bg6 {[%clk
0:04:37.4]} 14. Nxg6 {[%clk 0:04:29.7]} 14... hxg6 {[%clk 0:04:37.3]} 15. Na3
{[%clk 0:04:24]} 15... a6 {[%clk 0:04:35.7]} 16. Rfe1 {[%clk 0:04:22.9]} 16...
Nc8 {[%clk 0:04:33.6]} 17. Nc2 {[%clk 0:04:17.9]} 17... Nd6 {[%clk 0:04:31.3]}
18. Ne3 {[%clk 0:04:14.4]} 18... Ne7 {[%clk 0:04:27.2]} 19. Ng4 {[%clk 0:04:12]}
19... Rfe8 {[%clk 0:04:24.3]} 20. Ne5 {[%clk 0:04:05.5]} 20... Nef5 {[%clk
0:04:03.6]} 21. Kf2 {[%clk 0:04:00.8]} 21... Re7 {[%clk 0:04:00]} 22. Ng4 {[%clk
0:03:56.3]} 22... Rae8 {[%clk 0:03:56.7]} 23. g3 {[%clk 0:03:47.7]} 23... c6
{[%clk 0:03:32.1]} 24. b4 {[%clk 0:03:40.4]} 24... Nh6 {[%clk 0:03:27.3]} 25.
Nxh6+ {[%clk 0:03:37.3]} 25... gxh6 {[%clk 0:03:27.2]} 26. a4 {[%clk 0:03:34.9]}
26... Rxe1 {[%clk 0:03:24.9]} 27. Rxe1 {[%clk 0:03:32.9]} 27... Rxe1 {[%clk
0:03:23.7]} 28. Kxe1 {[%clk 0:03:32.8]} 28... Kg7 {[%clk 0:03:23.2]} 29. a5
{[%clk 0:03:29.2]} 29... Kf6 {[%clk 0:03:21.5]} 30. Kf2 {[%clk 0:03:28.7]} 30...
h5 {[%clk 0:03:17.2]} 31. h4 {[%clk 0:03:27.4]} 31... Nb5 {[%clk 0:03:09.6]} 32.
Bxb5 {[%clk 0:03:24.7]} 32... axb5 {[%clk 0:03:09.5]} 33. g4 {[%clk 0:03:14.4]}
33... g5 {[%clk 0:02:49.4]} 34. gxh5 {[%clk 0:02:35.4]} 34... gxh4 {[%clk
0:02:47.9]} 35. f4 {[%clk 0:02:34.7]} 35... Kg7 {[%clk 0:02:36.4]} 36. Kf3
{[%clk 0:02:31.1]} 36... f5 {[%clk 0:02:29.6]} 37. Kg2 {[%clk 0:02:30.1]} 37...
Kh6 {[%clk 0:02:28.8]} 38. Kh2 {[%clk 0:02:29]} 38... Kxh5 {[%clk 0:02:27.7]}
39. Kh3 {[%clk 0:02:28.2]} 39... Kg6 {[%clk 0:02:20.7]} 40. Kxh4 {[%clk
0:02:28.1]} 40... Kh6 {[%clk 0:02:19.7]} 41. Kh3 {[%clk 0:02:25.7]} 41... Kg6
{[%clk 0:02:16.4]} 42. Kg3 {[%clk 0:02:25.6]} 42... Kh6 {[%clk 0:02:15.6]} 43.
Kh3 {[%clk 0:02:25.5]} 43... Kg6 {[%clk 0:02:15.1]} 44. Kg3 {[%clk 0:02:21.9]}
44... Kh6 {[%clk 0:02:13.7]} 45. Kh3 {[%clk 0:02:20.9]} 1/2-1/2

[Event "Live Chess"]
[Site "Chess.com"]
[Date "2024.06.02"]
[Round "-"]
[White "Zhevzh1k7"]
[Black "JohanKjeldahl"]
[Result "0-1"]
[WhiteElo "1107"]
[BlackElo "1809"]
[TimeControl "300"]
[EndTime "2:43:52 PDT"]
[Termination "JohanKjeldahl won by resignation"]

1. e4 {[%clk 0:04:57.8]} 1... c5 {[%clk 0:04:57.7]} 2. Nf3 {[%clk 0:04:55.8]}
2... e6 {[%clk 0:04:56.5]} 3. Bc4 {[%clk 0:04:51.9]} 3... a6 {[%clk 0:04:54.2]}
4. a3 {[%clk 0:04:47.3]} 4... b5 {[%clk 0:04:52.3]} 5. Ba2 {[%clk 0:04:45.8]}
5... Nc6 {[%clk 0:04:51.9]} 6. d4 {[%clk 0:04:42.5]} 6... cxd4 {[%clk 0:04:50]}
7. Nxd4 {[%clk 0:04:42.4]} 7... Bb7 {[%clk 0:04:49.1]} 8. Nc3 {[%clk 0:04:38.2]}
8... Nf6 {[%clk 0:04:47.9]} 9. O-O {[%clk 0:04:33.8]} 9... Bc5 {[%clk
0:04:46.7]} 10. Be3 {[%clk 0:04:29.8]} 10... Bb6 {[%clk 0:04:41.5]} 11. Qf3
{[%clk 0:04:17.4]} 11... O-O {[%clk 0:04:39.4]} 12. Nxc6 {[%clk 0:04:15.2]}
12... Bxc6 {[%clk 0:04:37.7]} 13. Bxb6 {[%clk 0:04:13.4]} 13... Qxb6 {[%clk
0:04:24.4]} 14. Rad1 {[%clk 0:04:01.6]} 14... Rad8 {[%clk 0:04:21]} 15. Rfe1
{[%clk 0:03:43.1]} 15... d5 {[%clk 0:04:17.8]} 16. exd5 {[%clk 0:03:37.5]} 16...
Nxd5 {[%clk 0:04:16]} 17. Nxd5 {[%clk 0:03:33.5]} 17... Bxd5 {[%clk 0:04:14]}
18. Bxd5 {[%clk 0:03:31.3]} 18... exd5 {[%clk 0:04:13]} 19. Rxd5 {[%clk
0:03:26.1]} 19... h6 {[%clk 0:04:11.6]} 20. Rde5 {[%clk 0:03:18.3]} 20... Rd2
{[%clk 0:03:59]} 21. R1e2 {[%clk 0:02:58.3]} 21... Qd6 {[%clk 0:03:48.9]} 22.
Rxd2 {[%clk 0:02:50.6]} 22... Qxd2 {[%clk 0:03:47.3]} 23. Qe2 {[%clk 0:02:40]}
23... Qc1+ {[%clk 0:03:45.9]} 24. Qe1 {[%clk 0:02:32.9]} 24... Qxb2 {[%clk
0:03:44.5]} 25. Re7 {[%clk 0:02:19.7]} 25... Qxa3 {[%clk 0:03:38.7]} 26. Ra7
{[%clk 0:02:17.1]} 26... Rc8 {[%clk 0:03:24.4]} 27. h3 {[%clk 0:02:11.7]} 27...
Qd6 {[%clk 0:03:07.5]} 28. Qe4 {[%clk 0:01:50.9]} 28... b4 {[%clk 0:02:56.8]}
29. Re7 {[%clk 0:01:45.2]} 29... a5 {[%clk 0:02:20]} 30. Re8+ {[%clk 0:01:41.9]}
30... Rxe8 {[%clk 0:02:18.1]} 31. Qxe8+ {[%clk 0:01:41.6]} 31... Kh7 {[%clk
0:02:15]} 32. Qe4+ {[%clk 0:01:39.6]} 32... g6 {[%clk 0:02:14]} 33. Qb7 {[%clk
0:01:27.9]} 33... Kg7 {[%clk 0:02:07.6]} 34. Qb5 {[%clk 0:01:25.5]} 34... Qd1+
{[%clk 0:02:01.3]} 35. Kh2 {[%clk 0:01:21.7]} 35... Qxc2 {[%clk 0:01:56.4]} 36.
Qxa5 {[%clk 0:01:20.2]} 36... b3 {[%clk 0:01:54.2]} 37. Qa1+ {[%clk 0:01:18.1]}
37... b2 {[%clk 0:01:51.3]} 0-1

[Event "Live Chess"]
[Site "Chess.com"]
[Date "2024.06.02"]
[Round "-"]
[White "PaulHumphreys"]
[Black "AndyJWise"]
[Result "1-0"]
[WhiteElo "1411"]
[BlackElo "1033"]
[TimeControl "300"]
[EndTime "2:44:17 PDT"]
[Termination "PaulHumphreys won by resignation"]

1. d4 {[%clk 0:04:56.6]} 1... Nf6 {[%clk 0:04:57.8]} 2. Nc3 {[%clk 0:04:55.6]}
2... g6 {[%clk 0:04:55.9]} 3. e4 {[%clk 0:04:54.1]} 3... d6 {[%clk 0:04:54.5]}
4. f4 {[%clk 0:04:52.9]} 4... Bg7 {[%clk 0:04:48.9]} 5. Nf3 {[%clk 0:04:51.3]}
5... Bg4 {[%clk 0:04:46.8]} 6. h3 {[%clk 0:04:46.8]} 6... Bxf3 {[%clk
0:04:45.4]} 7. Qxf3 {[%clk 0:04:45.5]} 7... Na6 {[%clk 0:04:42.8]} 8. a3 {[%clk
0:04:42.4]} 8... e5 {[%clk 0:04:35.8]} 9. fxe5 {[%clk 0:04:37.6]} 9... dxe5
{[%clk 0:04:34.6]} 10. Bg5 {[%clk 0:04:31.3]} 10... Qxd4 {[%clk 0:04:30.7]} 11.
Bxf6 {[%clk 0:04:24.3]} 11... Bxf6 {[%clk 0:04:19.9]} 12. Qxf6 {[%clk
0:04:23.2]} 12... O-O {[%clk 0:04:19]} 13. Rd1 {[%clk 0:04:14.1]} 13... Qe3+
{[%clk 0:04:10.4]} 14. Be2 {[%clk 0:04:04.5]} 14... Nc5 {[%clk 0:03:56]} 15. Qf3
{[%clk 0:03:44.2]} 15... Qxf3 {[%clk 0:03:50.7]} 16. Bxf3 {[%clk 0:03:40.5]} 1-0

[Event "Live Chess"]
[Site "Chess.com"]
[Date "2024.06.02"]
[Round "-"]
[White "AlexanderMatlak"]
[Black "bill77678"]
[Result "1-0"]
[WhiteElo "2412"]
[BlackElo "1845"]
[TimeControl "300"]
[EndTime "2:44:52 PDT"]
[Termination "AlexanderMatlak won by resignation"]

1. c4 {[%clk 0:04:56.3]} 1... e6 {[%clk 0:04:58.1]} 2. Nf3 {[%clk 0:04:55]} 2...
d5 {[%clk 0:04:57.5]} 3. g3 {[%clk 0:04:54.4]} 3... Nf6 {[%clk 0:04:56.5]} 4.
Bg2 {[%clk 0:04:53.8]} 4... Nbd7 {[%clk 0:04:50]} 5. O-O {[%clk 0:04:52.6]} 5...
Bd6 {[%clk 0:04:48.9]} 6. b3 {[%clk 0:04:44]} 6... O-O {[%clk 0:04:46.9]} 7. Bb2
{[%clk 0:04:43.3]} 7... b6 {[%clk 0:04:41]} 8. e3 {[%clk 0:04:38.1]} 8... Bb7
{[%clk 0:04:39.4]} 9. d3 {[%clk 0:04:37.6]} 9... dxc4 {[%clk 0:04:37]} 10. bxc4
{[%clk 0:04:33.2]} 10... c5 {[%clk 0:04:35.7]} 11. Nbd2 {[%clk 0:04:28.4]} 11...
Qc7 {[%clk 0:04:29.7]} 12. Qc2 {[%clk 0:04:27.4]} 12... Rad8 {[%clk 0:04:25.3]}
13. a4 {[%clk 0:04:25.7]} 13... a5 {[%clk 0:04:15.8]} 14. Rab1 {[%clk
0:04:22.9]} 14... Rb8 {[%clk 0:03:58.8]} 15. Rfd1 {[%clk 0:04:21.3]} 15... Bc6
{[%clk 0:03:55.1]} 16. Bc3 {[%clk 0:03:59.5]} 16... Ng4 {[%clk 0:03:48.8]} 17.
Qb2 {[%clk 0:03:54.7]} 17... Nge5 {[%clk 0:03:39.2]} 18. Nxe5 {[%clk 0:03:50.5]}
18... Bxe5 {[%clk 0:03:33.7]} 19. Bxc6 {[%clk 0:03:43]} 19... Bxc3 {[%clk
0:03:31.5]} 20. Qxc3 {[%clk 0:03:42.9]} 20... Qxc6 {[%clk 0:03:29.9]} 21. Rb5
{[%clk 0:03:33.9]} 21... Rfd8 {[%clk 0:03:12.6]} 22. Ne4 {[%clk 0:03:19.4]}
22... Qc7 {[%clk 0:03:06]} 23. Rdb1 {[%clk 0:03:11.5]} 23... Ne5 {[%clk
0:02:54.7]} 24. d4 {[%clk 0:02:46.6]} 24... cxd4 {[%clk 0:02:46.4]} 25. exd4
{[%clk 0:02:45.5]} 25... Nc6 {[%clk 0:02:24.4]} 26. d5 {[%clk 0:02:36.2]} 26...
Nb4 {[%clk 0:01:55.9]} 27. d6 {[%clk 0:02:26.5]} 27... Qc6 {[%clk 0:01:47]} 28.
Rg5 {[%clk 0:02:20.7]} 1-0

[Event "Live Chess"]
[Site "Chess.com"]
[Date "2024.06.02"]
[Round "-"]
[White "booktrunk"]
[Black "Purple1szed"]
[Result "0-1"]
[WhiteElo "1508"]
[BlackElo "2073"]
[TimeControl "300"]
[EndTime "2:44:57 PDT"]
[Termination "Purple1szed won by resignation"]

1. d4 {[%clk 0:04:51.7]} 1... d5 {[%clk 0:04:52.2]} 2. Nc3 {[%clk 0:04:47.7]}
2... Nf6 {[%clk 0:04:47]} 3. Bf4 {[%clk 0:04:45]} 3... a6 {[%clk 0:04:46.5]} 4.
e3 {[%clk 0:04:42.1]} 4... b5 {[%clk 0:04:43.2]} 5. h3 {[%clk 0:04:39.5]} 5...
h6 {[%clk 0:04:38.2]} 6. a3 {[%clk 0:04:37.6]} 6... e6 {[%clk 0:04:36]} 7. Nf3
{[%clk 0:04:34.8]} 7... c5 {[%clk 0:04:35.2]} 8. dxc5 {[%clk 0:04:32.8]} 8...
Bxc5 {[%clk 0:04:34]} 9. Bh2 {[%clk 0:04:24.5]} 9... Bb7 {[%clk 0:04:22.9]} 10.
Be2 {[%clk 0:04:23.1]} 10... Nbd7 {[%clk 0:04:21.8]} 11. O-O {[%clk 0:04:21.7]}
11... O-O {[%clk 0:04:21.5]} 12. b4 {[%clk 0:04:19.2]} 12... Be7 {[%clk
0:04:09]} 13. Nd4 {[%clk 0:04:18.1]} 13... Re8 {[%clk 0:03:50.8]} 14. a4 {[%clk
0:04:05.9]} 14... Bxb4 {[%clk 0:03:30.6]} 15. Na2 {[%clk 0:03:58.2]} 15... Bf8
{[%clk 0:03:15.2]} 16. axb5 {[%clk 0:03:56.1]} 16... axb5 {[%clk 0:03:13.9]} 17.
Nxb5 {[%clk 0:03:54.8]} 17... Rc8 {[%clk 0:02:29.1]} 18. Nd6 {[%clk 0:03:49.5]}
18... Bxd6 {[%clk 0:02:27.5]} 19. Bxd6 {[%clk 0:03:48.3]} 19... Nb6 {[%clk
0:02:21.7]} 20. Bh2 {[%clk 0:03:42.2]} 20... Nc4 {[%clk 0:02:20.3]} 21. Nb4
{[%clk 0:03:37.6]} 21... Ne4 {[%clk 0:02:11.5]} 22. Bxc4 {[%clk 0:03:30.7]}
22... dxc4 {[%clk 0:02:09.2]} 23. Qxd8 {[%clk 0:03:28.2]} 23... Rexd8 {[%clk
0:02:09.1]} 24. Rac1 {[%clk 0:03:20.8]} 24... f6 {[%clk 0:02:03.8]} 25. f3
{[%clk 0:03:14.5]} 25... Nd2 {[%clk 0:02:00.8]} 26. Rfd1 {[%clk 0:03:12.6]}
26... c3 {[%clk 0:01:59]} 27. Kf2 {[%clk 0:03:08.7]} 27... Rc4 {[%clk
0:01:47.9]} 28. Nd3 {[%clk 0:03:06.8]} 28... Ba6 {[%clk 0:01:32.8]} 29. Ke1
{[%clk 0:02:54.9]} 29... e5 {[%clk 0:01:17.1]} 30. e4 {[%clk 0:02:51.2]} 30...
Rc7 {[%clk 0:01:13.3]} 31. f4 {[%clk 0:02:46.7]} 31... Bxd3 {[%clk 0:01:10.9]}
32. cxd3 {[%clk 0:02:45.7]} 32... Rxd3 {[%clk 0:01:10.8]} 33. fxe5 {[%clk
0:02:44.4]} 33... fxe5 {[%clk 0:01:09.2]} 34. Bxe5 {[%clk 0:02:41.6]} 34... Rcd7
{[%clk 0:01:08.5]} 35. Kf2 {[%clk 0:02:34]} 35... Nxe4+ {[%clk 0:01:06.7]} 36.
Ke2 {[%clk 0:02:31]} 36... Rd2+ {[%clk 0:00:56.8]} 37. Rxd2 {[%clk 0:02:29]}
37... cxd2 {[%clk 0:00:56.7]} 38. Rd1 {[%clk 0:02:26.5]} 38... Kf7 {[%clk
0:00:55.3]} 39. Bf4 {[%clk 0:02:22.5]} 39... Nc3+ {[%clk 0:00:54.7]} 0-1